Cogmind - Beta 14 @@@ ROGUE MODE // 2024.09.17 @ 21:12:35 Player: Mclir Result: Destroyed by D-53 Grenadier with Mini Grenade Launcher Performance ------------- Evolutions (0) 0 Regions Visited (2) 400 Robots Destroyed (39) 195 Value Destroyed (781) 781 Prototype IDs (5) 100 Alien Tech Used (0) 0 Bonus (0) 0 TOTAL SCORE: 1476 Bonus ------- None Cogmind --------- Core Integrity 0/250 Matter 252/300 Energy 100/100 System Corruption 0% Temperature Cool (0) Movement Treading (240) Ox1 Location -10/Mines Parts ------- > --- POWER (1) -------- (None) > --- PROPULSION (2) --- Light Treads > --- UTILITY (2) ------ High-capacity Storage Unit > --- WEAPON (2) ------- (None) > --- INVENTORY (20) --- Improved Ion Engine Improved Ion Engine Light Treads Light Treads Compact Wheel Heat Sink Large Storage Unit Structural Scanner Visual Processing Unit Signal Interpreter Seismic Detector Hacking Suite Assault Rifle Shotgun Light Cannon Light Cannon Light Cannon Mining Claw Peak State ------------ > --- POWER ------------ Improved Ion Engine > --- PROPULSION ------- Light Treads Light Treads > --- UTILITY ---------- High-capacity Storage Unit Light Armor Plating > --- WEAPON ----------- Shotgun Light Cannon > --- INVENTORY -------- Improved Ion Engine Improved Ion Engine Light Treads Light Treads Compact Wheel Heat Sink Large Storage Unit Structural Scanner Visual Processing Unit Signal Interpreter Seismic Detector Hacking Suite Assault Rifle Light Cannon Light Cannon Light Cannon Grenade Launcher Mining Claw [Rating: 11] Favorites ----------- Power Improved Ion Engine Engine Improved Ion Engine Propulsion Light Treads Treads Light Treads Utility Light Armor Plating Device Seismic Detector Storage High-capacity Storage Unit Protection Light Armor Plating Weapon Light Cannon Energy Gun EM Pulse Gun Ballistic Gun Assault Rifle Ballistic Cannon Light Cannon Launcher Grenade Launcher Build | -11 -10 -10 ------- Run | Yrd Mat Min Slots Evolved . | . . . Power . | . . . Propulsion . | . . . Utility . | . . . Weapon . | . . . Parts Attached 27 | 7 16 4 Power 4 | 1 3 . Engine 4 | 1 3 . Core . | . . . Reactor . | . . . Propulsion 6 | 2 4 . Treads 6 | 2 4 . Leg . | . . . Wheel . | . . . Hover . | . . . Flight . | . . . Utility 7 | 2 4 1 Device 2 | 1 1 . Storage 3 | 1 2 . Processor . | . . . Hackware . | . . . Protection 2 | . 1 1 Artifact . | . . . Weapon 10 | 2 5 3 Energy Gun 2 | 1 1 . Energy Cannon . | . . . Ballistic Gun 4 | 1 2 1 Ballistic Cannon 2 | . 2 . Launcher 2 | . . 2 Special Weapon . | . . . Impact Weapon . | . . . Slashing Weapon . | . . . Piercing Weapon . | . . . Special Melee Weapon . | . . . Unidentified Prototypes . | . . . Parts Lost 7 | . 2 5 Power 2 | . 1 1 Propulsion 1 | . . 1 Utility 1 | . . 1 Weapon 3 | . 1 2 Highest Loss Streak 5 | . 1 5 To Critical Strikes . | . . . Average Slot Usage (%) 98 | . 98 98 Engine 13 | . 13 14 Treads 27 | . 28 27 Device 3 | . 3 . Storage 14 | . 14 14 Protection 9 | . 9 13 Energy Gun 2 | . 2 . Ballistic Gun 11 | . 13 . Ballistic Cannon 11 | . 11 13 Launcher 2 | . . 13 Peak Build Rating 11 | 7 10 11 Average Rating 8 | 5 8 9 On Entrance 5 | . 7 9 Naked Turns . | . . . Heaviest Build 56 | 14 55 56 Greatest Support 40 | 40 40 40 Greatest Overweight (x) 2 | . 1 2 Average Overweight (x) . | . . 1 Largest Inventory Capacity 20 | 8 20 20 Average Capacity 16 | 7 17 20 Most Carried 19 | 8 19 19 Average Carried 14 | 6 15 18 Final Capacity 20 | 8 20 20 Final Carried 19 | 8 19 18 Class Distribution -------------------- 100% | Mutant Dominant Class ---------------- Mutant | -10/Materials Mutant | -10/Mines Resources | -11 -10 -10 ----------- Run | Yrd Mat Min Matter Collected 866 | 305 495 66 Remotely . | . . . Salvage Created 1214 | 209 943 62 Parts 91 | 18 70 3 Haulers Intercepted 2 | . 2 . Recyclers Shooed 3 | . 3 . Parts Field Recycled . | . . . Retrieved Matter . | . . . Parts Self-Destructed . | . . . Prevented . | . . . Kills | -11 -10 -10 ------- Run | Yrd Mat Min Combat Hostiles Destroyed 19 | . 16 3 Guns 12 | . 10 2 Cannons 6 | . 6 . AOE 1 | . . 1 Classes Destroyed 9 | 2 6 1 Builder 5 | . 5 . Tunneler 6 | 6 . . Hauler 2 | . 2 . Recycler 2 | 1 1 . Operator 3 | . 3 . Watcher 3 | . 3 . Swarmer 3 | . 3 . Grunt 15 | . 13 2 Assembled 1 | . . 1 Best Kill Streak 3 | 2 3 2 Combat Bots Only 3 | . 3 2 Max Kills in Single Turn 2 | 1 2 1 Gunslinging . | . . . Exploded 1 | . . 1 Melee . | . . . Uniques/NPCs Destroyed . | . . . Combat | -11 -10 -10 -------- Run | Yrd Mat Min Hostile Shots Fired 102 | . 69 33 Missed 28 | . 22 6 Damage Taken 1464 | . 600 864 Core 259 | . 69 190 Absorbed by Shields . | . . . Regen/Repaired (Parts) 30 | . 30 . Core Remaining (%) 100 | 100 . . Volleys Fired 155 | 37 106 12 Largest 2 | 1 2 2 Hottest 70 | 20 70 65 Shots Fired 226 | 37 166 23 Gun 179 | 37 133 9 Cannon 45 | . 33 12 Launcher 2 | . . 2 Special . | . . . Kinetic 197 | 37 139 21 Thermal 14 | . 14 . Explosive 2 | . . 2 Electromagnetic 13 | . 13 . Robot Hit Streak 13 | 6 13 10 Robot Miss Streak 4 | 4 3 2 Penetration Max . | . . . Secondary Targets . | . . . Shots Hit Robots 153 | 25 111 17 Core Hits 71 | 14 49 8 Critical Kills 1 | . 1 . Critical Parts Destroyed 1 | . 1 . Critical Strikes 3 | . 3 . Burn 1 | . 1 . Destroy 2 | . 2 . Melee Attacks . | . . . Impact . | . . . Slashing . | . . . Piercing . | . . . Sneak Attacks . | . . . Combat Hostiles . | . . . Follow-up Attacks . | . . . Damage Inflicted 2103 | 209 1488 406 Guns 1424 | 209 1046 169 Cannons 521 | . 415 106 Explosions 106 | . . 106 Melee . | . . . Ramming 52 | . 27 25 Kinetic 1641 | 209 1157 275 Thermal 135 | . 135 . Explosive 106 | . . 106 Electromagnetic 169 | . 169 . Impact . | . . . Slashing . | . . . Piercing . | . . . Highest Corruption . | . . . Average Corruption . | . . . Corruption Purged . | . . . Corruption Blocked . | . . . Overload Shots . | . . . Overflow Damage 2 | . 2 . Projectiles 2 | . 2 . Explosions . | . . . Melee . | . . . Knockbacks 13 | . 8 5 Impact 1 | . 1 . Kinetic 12 | . 7 5 Secondary . | . . . Self-Inflicted Damage 25 | . . 25 Shots 1 | . . 1 Rammed 6 | . 4 2 Targets Rammed 6 | . 4 2 Kicked . | . . . Crushed . | . . . Highest Temperature 165 | . 109 165 Average Temperature 36 | . 26 76 Received Heat Transfer 384 | . 294 90 Siege Activations . | . . . Robots Corrupted . | . . . Combat Hostiles . | . . . Parts Fried . | . . . Impact Corruptions . | . . . Robots Melted . | . . . Combat Hostiles . | . . . Parts Melted . | . . . Heat Transferred 444 | . 444 . Parts Sabotaged . | . . . Parts Stolen . | . . . Parts Stripped . | . . . Power Chain Reactions . | . . . Alert | -11 -10 -10 ------- Run | Yrd Mat Min Peak Influence 196 | 35 196 63 Initial 19 | . . 19 Average 68 | 12 86 19 Maximum Alert Level . | . . . Low Security (%) 100 | 100 100 100 Level 1 . | . . . Level 2 . | . . . Level 3 . | . . . Level 4 . | . . . Level 5 . | . . . High Security . | . . . Max Security . | . . . Squads Dispatched 5 | . 5 . Investigation 2 | . 2 . Extermination . | . . . Reinforcement 3 | . 3 . Assault . | . . . Garrison . | . . . Intercept . | . . . Searches Triggered . | . . . Construction Impeded . | . . . Haulers Reinforced . | . . . Active Scanning Responses . | . . . Cargo Convoy Interrupts . | . . . Stealth | -11 -10 -10 --------- Run | Yrd Mat Min Distress Signals 1 | . 1 . Communications Jammed . | . . . Distress Signals . | . . . Times Spotted 48 | . 40 8 Peak Tracking Total 8 | . 4 8 Tactical Retreats 4 | . 3 1 Traps | -11 -10 -10 ------- Run | Yrd Mat Min Traps Triggered 2 | . 2 . Indirectly . | . . . Trap Hack Attempts . | . . . Triggered . | . . . Disarmed . | . . . Reprogrammed . | . . . Reused . | . . . Traps Extracted . | . . . Installed . | . . . Triggered . | . . . Machines | -11 -10 -10 ---------- Run | Yrd Mat Min Machines Disabled 1 | . 1 . Max in Single Turn 1 | . 1 . Machines Repaired . | . . . Machines Dismantled . | . . . Machines Sabotaged . | . . . Overloaded Fab Kills . | . . . Hacking | -11 -10 -10 --------- Run | Yrd Mat Min Machines Accessed 7 | . 7 . Terminals 6 | . 6 . Fabricators . | . . . Repair Stations 1 | . 1 . Recycling Units . | . . . Scanalyzers . | . . . Garrison Access . | . . . Total Hacks 18 | . 18 . Successful 11 | . 11 . Failed 7 | . 7 . Catastrophic . | . . . Database Lockouts . | . . . Manual 4 | . 4 . Terminals 16 | . 16 . Fabricators . | . . . Repair Stations 2 | . 2 . Recycling Units . | . . . Scanalyzers . | . . . Garrison Access . | . . . Terminal Hacks 9 | . 9 . Robot Analysis 2 | . 2 . Prototype ID Bank 4 | . 4 . Alert Level 1 | . 1 . Locate Traps 1 | . 1 . Zone Layout 1 | . 1 . Fabricator Hacks . | . . . Repair Station Hacks 2 | . 2 . Scan Component 1 | . 1 . Repair 1 | . 1 . Recycling Unit Hacks . | . . . Scanalyzer . | . . . Garrison Access Hacks . | . . . Unauthorized Hacks . | . . . Terminals . | . . . Fabricators . | . . . Repair Stations . | . . . Recycling Units . | . . . Scanalyzers . | . . . Garrison Access . | . . . Data Cores Recovered . | . . . Used . | . . . Hacking Detections 4 | . 4 . Full Trace Events . | . . . Feedback Events . | . . . Feedback Blocked . | . . . Robot Schematics Acquired . | . . . Robots Built . | . . . Authchips . | . . . Time . | . . . Total Robot Build Rating . | . . . Part Schematics Acquired . | . . . Parts Built . | . . . Authchips . | . . . Time . | . . . Total Part Build Rating . | . . . Parts Repaired 1 | . 1 . Time 26 | . 26 . Parts Recycled . | . . . Recycled Matter . | . . . Retrieved Matter . | . . . Retrieved Components . | . . . Parts Scanalyzed . | . . . Part Schematics Acquired . | . . . Parts Damaged . | . . . Bothacking | -11 -10 -10 ------------ Run | Yrd Mat Min Used RIF Installer . | . . . Robots Hacked . | . . . Non-combat . | . . . Combat . | . . . Robot Hacks Applied . | . . . Relay Couplers Released . | . . . Fabnet Peak Effective % . | . . . Robots Rewired . | . . . Allies Hacked . | . . . Hacks Repelled . | . . . Allies | -11 -10 -10 -------- Run | Yrd Mat Min Total Allies . | . . . Largest Group . | . . . Highest-Rated Group . | . . . Highest-Rated Ally . | . . . Total Orders . | . . . Ally Attacks . | . . . Total Damage . | . . . Kills . | . . . Allies Corrupted . | . . . Allies Melted . | . . . Intel | -11 -10 -10 ------- Run | Yrd Mat Min Robot Analysis Total 2 | . 2 . Derelict Logs Recovered 1 | . . 1 Drone Launches . | . . . Drone Recoveries . | . . . Exploration | -11 -10 -10 ------------- Run | Yrd Mat Min Turns Passed 4204 | 402 3086 716 Spaces Moved 1887 | 206 1402 279 Core 13 | 13 . . Treads 1874 | 193 1402 279 Legs . | . . . Wheels . | . . . Hover . | . . . Flight . | . . . Fastest Speed 50 | 50 160 240 Average Speed 194 | 153 191 240 Slowest Speed 320 | 160 240 320 Overloaded Moves . | . . . Propulsion Burnouts . | . . . Robots Hopped . | . . . Cave-ins Triggered . | . . . Exploration Rate (%) 54 | 13 98 52 Regions Visited 2 Branch Regions 1 Pre-discovered Areas 1 | . . 1 Known Exits Taken . | . . . Unknown Exits Taken 2 | 1 1 . Scrap Searched . | . . . Spaces Dug . | . . . Terrain Destroyed 13 | . . 13 Melee . | . . . Projectile . | . . . AOE 13 | . . 13 Terrain Rammed . | . . . Walls Destroyed . | . . . Machines Disabled . | . . . Actions | -11 -10 -10 --------- Run | Yrd Mat Min Total 2212 | 263 1652 297 Wait 79 | . 79 . Move 1885 | 205 1401 279 Hop . | . . . Pick Up 39 | 14 25 . Fast Attach 2 | 1 1 . Attach 10 | 6 3 1 Detach . | . . . Swap 15 | . 12 3 Drop 21 | . 21 . Fire 155 | 37 106 12 Melee . | . . . Ram . | . . . Kick . | . . . Crush 6 | . 4 2 Escape Stasis . | . . . Rewire . | . . . Trap . | . . . Miscellaneous . | . . . Route ------- -11/Scrapyard -10/Materials (discovered 4 exits: [*Mat x3] / [*Min]) -10/Mines (discovered 2 exits: [*Mat x2]) History --------- Turn | Location | Event 36 | -11/Scrapyard | Discovered new exit (range 16) 403 | -11/Scrapyard | Entered Materials 404 | -10/Materials | Build established: Mutant 501 | -10/Materials | Discovered new exit (range 16) 742 | -10/Materials | Discovered new exit (range 16) 956 | -10/Materials | Discovered new exit (range 8) 1882 | -10/Materials | Discovered new exit (range 8) 3260 | -10/Materials | Repaired Lgt. Armor Plating 3489 | -10/Materials | Entered Mines 3706 | -10/Mines | Learned location of Storage (-9) 3715 | -10/Mines | Discovered new exit (range 14) 3922 | -10/Mines | Discovered new exit (range 5) 4157 | -10/Mines | Assembled infested the area 4200 | -10/Mines | Core integrity fell below 50% 4202 | -10/Mines | Core integrity fell below 20% 4205 | -10/Mines | Destroyed by D-53 Grenadier with Mini Grenade Launcher Last Messages --------------- as-12932 knocked back. as-88616 destroyed. as-12932 destroyed. as-85842 destroyed. as-16101 destroyed. U-05 Engineer builds a Wall. K-01 Serf destroyed. Grenade Launcher destroyed. Lgt. Armor Plating destroyed. U-05 Engineer builds a Wall. The unstable cave ceiling collapses. Lgt. Cannon destroyed. The unstable cave ceiling collapses. U-05 Engineer destroyed. K-01 Serf destroyed. The unstable cave ceiling collapses. K-01 Serf destroyed. Lgt. Treads destroyed. The unstable cave ceiling collapses. Imp. Ion Engine destroyed. Map ----- +----------------------------------------------------+ | ?????????????????????????????????????????????????? | | ?????????????????????????????????????????????????? | | ?????????????????????????????????????????????????? | | ?????????????????????????????????????????????????? | | ?????????????????????????????????????????????????? | | ?????????????????????????????????????????????????? | | ?????????????????????????????????????????????????? | | ????????????????????? ???????????????????????????? | | ????????????????????? ???????????????????????????? | | ????????????????????? ???????????????????????????? | | ????????????????????# ???????????????????????????? | | ????????????????????# ??????????????????#????????? | | ???????????????????? ????????????????## ???????? | | ????????????????????# ??????????????## ????????? | | ????????????????????# ########?????# ?????????? | | ????????????????????# # #????# ??????????? | | ????????????????????# # #??## ???????????? | | ??????????????????### ## #???????????? | | ????????????????### * # #???????????? | | ????????????????# # d % #???????????? | | ????????????????# d ######???????? | | ??????????????# # #???????? | | ??????????????# ?????????? | | ????????????????# # #??????????????? | | ????????????????# # #??????????????? | | ????????????????# # @ # #??????????????? | | ????????????????## # ##??????????????? | | ?????????????????## ##??????????????? | | ?????????????###??### ### ##?????????????? | | ????????????? #????#### *# ##?# #######???????? | | ?????????????# #??###### ###### ## ##??????? | | ?????????????# #?## ##?????? | | ?????#######?# ### ### ## #?????? | | ????## ### ## #?# ## #?????? | | ????# ## # ## ## ### ## #?????? | | ????# ##### ## #?######## #?????? | | ????# #???##### #????????#####?????? | | ????# < # # #???????# #??????????????????? | | ????# ## ## #???????# #??????????????????? | | ????## # #### ## ##???????# #??????????????????? | | ?????#### #??# ####????????# #??????????????????? | | ??####### #??# #???????????# #??????????????????? | | ??# #??# #?????????### ###########????????? | | ??# ########??# #?????????# #????????? | | ??# #?????????# #?######### """ """ """ #????????? | | ### #?????????# #?# """ """ """ #????????? | | #?????????# #?# ####### """ """ """ #????????? | | #####?????????# ### #?????# #????????? | | ??????????????# #?????# """ """ """ #????????? | | ??????????????# #####?????# """ """ """ #????????? | +----------------------------------------------------+ Best States ------------- Heat Dissipation 25 Energy Generation 12 Energy Capacity 265 Matter Stores 300 Matter Capacity 300 Sight Range 16 Terrain Scan Density 10 Armor Coverage 150 Evasion (%) 40 Recoil Reduction 2 Item Schematics ----------------- None Robot Schematics ------------------ None Fabricated ------------ Nothing Alien Tech Used ----------------- None Achievements -------------- Let's See Who's Tougher Challenges ------------ None Game ------ Seed CommTerrainVibroblade Manual? 0 Play Time 00:28:35 Cumulative 36.2 hours Start 2024.09.17 @ 20:43:24 End 2024.09.17 @ 21:12:35 Sessions 1 Manual Loads 0 Difficulty Rogue Special Mode None Game No. 24 Rogue 24 Adventurer 0 Explorer 0 Win Type - Total 1 Types 1/0/0/0/0/0/0/0/0 Lore% 14 Gallery% 21 Achievement% 23 Wizard Run 0 Options --------- Layout 1 ASCII 0 Keyboard 0 Movement Mouse Keybinds 0 Fullscreen 1 Font 18/SmallcapsGlow Map View 54x44 Zoom Use 0% Tactical HUD 0 Map Filters NONE Filters NONE Steam 0 RUN: 7fe3003c-fbe3-4089-8521-84cf4e162076